[Event "Titled Tuesday Blitz March 28 Late 2023"]
[White "Wu, Sibo"]
[Black "Khandelwal, Ankush"]
[WhiteFideId "8606048"]
[BlackFideId "413470"]
[WhiteElo "2283"]
[BlackElo "2263"]
[Result "0-1"]
[Round "06"]
[TimeControl "180+2"]
[Date "2023.03.28"]
[WhiteClock "0:01:04"]
[BlackClock "0:01:12"]

1. d4 {[%clk 0:03:00]}  Nf6 {[%clk 0:02:59]} 2. Bf4 {[%clk 0:03:00]}  g6 {[%clk 0:02:52]} 3. Nc3 {[%clk 0:03:00]}  d5 {[%clk 0:02:47]} 4. e3 {[%clk 0:03:00]}  Bg7 {[%clk 0:02:46]} 5. h4 {[%clk 0:03:00]}  c6 {[%clk 0:02:36]} 6. Bd3 {[%clk 0:02:55]}  b5 {[%clk 0:02:26]} 7. Nf3 {[%clk 0:02:50]}  b4 {[%clk 0:02:23]} 8. Ne2 {[%clk 0:02:49]}  Nbd7 {[%clk 0:02:23]} 9. Ne5 {[%clk 0:02:43]}  Nxe5 {[%clk 0:02:18]} 10. Bxe5 {[%clk 0:02:43]}  a5 {[%clk 0:02:09]} 11. Ng3 {[%clk 0:02:13]}  h5 {[%clk 0:02:01]} 12. Qe2 {[%clk 0:01:59]}  Qb6 {[%clk 0:01:57]} 13. e4 {[%clk 0:01:54]}  Ba6 {[%clk 0:01:52]} 14. O-O {[%clk 0:01:46]}  O-O {[%clk 0:01:50]} 15. f4 {[%clk 0:01:35]}  dxe4 {[%clk 0:01:36]} 16. Nxe4 {[%clk 0:01:30]}  Nxe4 {[%clk 0:01:35]} 17. Bxg7 {[%clk 0:01:30]}  Ng3 {[%clk 0:01:24]} 18. Qxe7 {[%clk 0:01:22]}  Kxg7 {[%clk 0:01:18]} 19. Qe5+ {[%clk 0:01:17]}  f6 {[%clk 0:01:15]} 20. Qe7+ {[%clk 0:01:07]}  Rf7 {[%clk 0:01:15]} 21. Qe3 {[%clk 0:01:06]}  Bxd3 {[%clk 0:01:12]} 22. Qxd3 {[%clk 0:01:04]} 0-1


[Site "https://www.chess.com"]

[Event "Titled Tuesday Blitz March 28 Late 2023"]
[White "Fernandez, Maria Florencia"]
[Black "Fernandez Sanchez, Mario Andres"]
[WhiteFideId "116459"]
[BlackFideId "6501621"]
[WhiteElo "2155"]
[BlackElo "2050"]
[Result "1-0"]
[Round "06"]
[TimeControl "180+2"]
[Date "2023.03.28"]
[WhiteClock "0:00:09"]
[BlackClock "0:01:27"]

1. d4 {[%clk 0:03:00]}  d5 {[%clk 0:02:59]} 2. c4 {[%clk 0:03:00]}  c6 {[%clk 0:02:59]} 3. Nc3 {[%clk 0:02:59]}  Nf6 {[%clk 0:03:00]} 4. Nf3 {[%clk 0:02:56]}  dxc4 {[%clk 0:03:00]} 5. a4 {[%clk 0:02:54]}  Bf5 {[%clk 0:03:00]} 6. Ne5 {[%clk 0:02:52]}  e6 {[%clk 0:03:00]} 7. Nxc4 {[%clk 0:02:51]}  Nbd7 {[%clk 0:02:59]} 8. f3 {[%clk 0:02:50]}  Bg6 {[%clk 0:02:59]} 9. e4 {[%clk 0:02:51]}  Be7 {[%clk 0:02:59]} 10. Be3 {[%clk 0:02:50]}  O-O {[%clk 0:02:59]} 11. Be2 {[%clk 0:02:49]}  e5 {[%clk 0:02:55]} 12. d5 {[%clk 0:02:44]}  Bc5 {[%clk 0:02:56]} 13. Bxc5 {[%clk 0:02:31]}  Nxc5 {[%clk 0:02:56]} 14. dxc6 {[%clk 0:02:16]}  bxc6 {[%clk 0:02:54]} 15. Qxd8 {[%clk 0:02:12]}  Rfxd8 {[%clk 0:02:52]} 16. Nxe5 {[%clk 0:02:11]}  Rdb8 {[%clk 0:02:14]} 17. Ra2 {[%clk 0:01:37]}  Rc8 {[%clk 0:02:13]} 18. b4 {[%clk 0:01:28]}  Ncd7 {[%clk 0:02:13]} 19. Nxd7 {[%clk 0:01:16]}  Nxd7 {[%clk 0:02:14]} 20. O-O {[%clk 0:01:16]}  a5 {[%clk 0:02:04]} 21. b5 {[%clk 0:01:15]}  Nb6 {[%clk 0:02:05]} 22. Rb1 {[%clk 0:01:00]}  f5 {[%clk 0:02:00]} 23. bxc6 {[%clk 0:00:43]}  Rxc6 {[%clk 0:01:58]} 24. exf5 {[%clk 0:00:16]}  Bxf5 {[%clk 0:01:58]} 25. Rb5 {[%clk 0:00:13]}  Be6 {[%clk 0:01:47]} 26. Rab2 {[%clk 0:00:12]}  Rac8 {[%clk 0:01:47]} 27. Rxb6 {[%clk 0:00:09]}  Kf7 {[%clk 0:01:29]} 28. Rxc6 {[%clk 0:00:10]}  Rxc6 {[%clk 0:01:30]} 29. Nb5 {[%clk 0:00:10]}  Bc4 {[%clk 0:01:26]} 30. Bxc4+ {[%clk 0:00:09]}  Rxc4 {[%clk 0:01:27]} 31. Nd6+ {[%clk 0:00:09]} 1-0


[Site "https://www.chess.com"]

[Event "Titled Tuesday Blitz March 28 Late 2023"]
[White "Senthilkumar, Pranav"]
[Black "Muhammad, Shahzeb"]
[WhiteFideId "2083477"]
[BlackFideId "7804806"]
[WhiteElo "1860"]
[BlackElo "2275"]
[Result "1-0"]
[Round "06"]
[TimeControl "180+2"]
[Date "2023.03.28"]
[WhiteClock "0:00:47"]
[BlackClock "0:00:09"]

1. Nf3 {[%clk 0:03:00]}  b6 {[%clk 0:02:59]} 2. g3 {[%clk 0:02:59]}  Bb7 {[%clk 0:03:00]} 3. Bg2 {[%clk 0:02:59]}  g6 {[%clk 0:03:00]} 4. O-O {[%clk 0:03:00]}  Bg7 {[%clk 0:03:01]} 5. c4 {[%clk 0:03:00]}  c5 {[%clk 0:02:59]} 6. Nc3 {[%clk 0:03:00]}  Nf6 {[%clk 0:02:59]} 7. d4 {[%clk 0:03:00]}  cxd4 {[%clk 0:02:59]} 8. Qxd4 {[%clk 0:02:59]}  O-O {[%clk 0:02:58]} 9. Qd2 {[%clk 0:02:52]}  Ne4 {[%clk 0:02:56]} 10. Nxe4 {[%clk 0:02:52]}  Bxe4 {[%clk 0:02:57]} 11. Rd1 {[%clk 0:02:43]}  d6 {[%clk 0:02:55]} 12. Qe3 {[%clk 0:02:41]}  Bc6 {[%clk 0:02:51]} 13. Rb1 {[%clk 0:02:39]}  a5 {[%clk 0:02:47]} 14. Bd2 {[%clk 0:02:39]}  Nd7 {[%clk 0:02:45]} 15. Bc3 {[%clk 0:02:37]}  Nf6 {[%clk 0:02:41]} 16. b3 {[%clk 0:02:25]}  Qc7 {[%clk 0:02:40]} 17. Nd4 {[%clk 0:02:20]}  Bxg2 {[%clk 0:02:38]} 18. Kxg2 {[%clk 0:02:21]}  Ng4 {[%clk 0:02:30]} 19. Qf3 {[%clk 0:02:18]}  Bxd4 {[%clk 0:02:28]} 20. Bxd4 {[%clk 0:02:16]}  Nh6 {[%clk 0:02:26]} 21. g4 {[%clk 0:02:14]}  Qd7 {[%clk 0:02:21]} 22. h3 {[%clk 0:02:13]}  f6 {[%clk 0:02:16]} 23. Bxb6 {[%clk 0:02:10]}  Nf7 {[%clk 0:02:11]} 24. Bd4 {[%clk 0:02:10]}  a4 {[%clk 0:02:07]} 25. b4 {[%clk 0:02:08]}  Rfc8 {[%clk 0:02:02]} 26. c5 {[%clk 0:02:07]}  Ng5 {[%clk 0:02:00]} 27. Qd5+ {[%clk 0:02:03]}  Nf7 {[%clk 0:01:38]} 28. b5 {[%clk 0:01:51]}  e6 {[%clk 0:01:37]} 29. Qf3 {[%clk 0:01:47]}  e5 {[%clk 0:01:15]} 30. c6 {[%clk 0:01:47]}  Qe6 {[%clk 0:01:10]} 31. b6 {[%clk 0:01:43]}  e4 {[%clk 0:01:03]} 32. Qc3 {[%clk 0:01:32]}  h5 {[%clk 0:00:53]} 33. b7 {[%clk 0:01:30]}  hxg4 {[%clk 0:00:52]} 34. bxa8=Q {[%clk 0:01:27]}  Rxa8 {[%clk 0:00:51]} 35. c7 {[%clk 0:01:26]}  Ng5 {[%clk 0:00:48]} 36. Rb8+ {[%clk 0:01:22]}  Kh7 {[%clk 0:00:44]} 37. Rxa8 {[%clk 0:01:16]}  gxh3+ {[%clk 0:00:36]} 38. Kh1 {[%clk 0:01:13]}  e3 {[%clk 0:00:25]} 39. Qxe3 {[%clk 0:00:59]}  Qd5+ {[%clk 0:00:19]} 40. f3 {[%clk 0:00:59]}  Qxa8 {[%clk 0:00:14]} 41. Qe7+ {[%clk 0:00:59]}  Kh6 {[%clk 0:00:12]} 42. Qxf6 {[%clk 0:00:52]}  Qe8 {[%clk 0:00:06]} 43. Qh8+ {[%clk 0:00:52]}  Qxh8 {[%clk 0:00:05]} 44. Bxh8 {[%clk 0:00:53]}  Ne6 {[%clk 0:00:05]} 45. c8=Q {[%clk 0:00:53]}  Kh5 {[%clk 0:00:06]} 46. Qxe6 {[%clk 0:00:53]}  h2 {[%clk 0:00:07]} 47. Rd5+ {[%clk 0:00:50]}  g5 {[%clk 0:00:07]} 48. Qf6 {[%clk 0:00:49]}  Kh4 {[%clk 0:00:08]} 49. Qxg5+ {[%clk 0:00:49]}  Kh3 {[%clk 0:00:08]} 50. Bf6 {[%clk 0:00:47]}  a3 {[%clk 0:00:09]} 51. Qh4# {[%clk 0:00:47]} 1-0


[Site "https://www.chess.com"]

[Event "Titled Tuesday Blitz March 28 Late 2023"]
[White "Dudzinski, Pawel"]
[Black "morozcoma"]
[WhiteFideId "1117890"]
[WhiteElo "2099"]
[BlackElo "2272"]
[Result "1-0"]
[Round "06"]
[TimeControl "180+2"]
[Date "2023.03.28"]
[WhiteClock "0:00:41"]
[BlackClock "0:01:24"]

1. e4 {[%clk 0:03:00]}  e5 {[%clk 0:02:42]} 2. Nf3 {[%clk 0:02:59]}  Nc6 {[%clk 0:02:43]} 3. d4 {[%clk 0:02:58]}  exd4 {[%clk 0:02:44]} 4. Nxd4 {[%clk 0:02:58]}  Qf6 {[%clk 0:02:44]} 5. Nxc6 {[%clk 0:02:57]}  Bc5 {[%clk 0:02:44]} 6. Qf3 {[%clk 0:02:57]}  Qxf3 {[%clk 0:02:41]} 7. gxf3 {[%clk 0:02:58]}  dxc6 {[%clk 0:02:41]} 8. Be3 {[%clk 0:02:57]}  Bb6 {[%clk 0:02:40]} 9. Nd2 {[%clk 0:02:52]}  Be6 {[%clk 0:02:39]} 10. Rg1 {[%clk 0:02:43]}  g6 {[%clk 0:02:35]} 11. Bc4 {[%clk 0:02:27]}  O-O-O {[%clk 0:02:19]} 12. Bxe6+ {[%clk 0:02:23]}  fxe6 {[%clk 0:02:20]} 13. f4 {[%clk 0:02:13]}  e5 {[%clk 0:02:11]} 14. Bxb6 {[%clk 0:01:59]}  cxb6 {[%clk 0:02:09]} 15. fxe5 {[%clk 0:01:59]}  Re8 {[%clk 0:02:08]} 16. f4 {[%clk 0:01:58]}  Nh6 {[%clk 0:02:04]} 17. Ke2 {[%clk 0:01:56]}  Nf7 {[%clk 0:02:04]} 18. Nf3 {[%clk 0:01:51]}  Kc7 {[%clk 0:01:59]} 19. Rad1 {[%clk 0:01:46]}  Nd8 {[%clk 0:01:57]} 20. Ke3 {[%clk 0:01:37]}  Ne6 {[%clk 0:01:55]} 21. Ng5 {[%clk 0:01:35]}  Ng7 {[%clk 0:01:46]} 22. Rd6 {[%clk 0:01:11]}  Rhf8 {[%clk 0:01:37]} 23. Rgd1 {[%clk 0:01:08]}  Re7 {[%clk 0:01:35]} 24. c4 {[%clk 0:01:01]}  Nh5 {[%clk 0:01:35]} 25. Ne6+ {[%clk 0:00:57]}  Rxe6 {[%clk 0:01:34]} 26. Rxe6 {[%clk 0:00:58]}  Rxf4 {[%clk 0:01:34]} 27. Re7+ {[%clk 0:00:57]}  Kc8 {[%clk 0:01:32]} 28. Rdd7 {[%clk 0:00:54]}  Rh4 {[%clk 0:01:31]} 29. Rc7+ {[%clk 0:00:52]}  Kd8 {[%clk 0:01:32]} 30. Red7+ {[%clk 0:00:52]}  Ke8 {[%clk 0:01:31]} 31. Rxh7 {[%clk 0:00:51]}  Rh3+ {[%clk 0:01:31]} 32. Kf2 {[%clk 0:00:42]}  Rxh2+ {[%clk 0:01:30]} 33. Kg1 {[%clk 0:00:42]}  Rd2 {[%clk 0:01:24]} 34. Rh8# {[%clk 0:00:41]} 1-0


[Site "https://www.chess.com"]

[Event "Titled Tuesday Blitz March 28 Late 2023"]
[White "Mendez Machado, Andre"]
[Black "Fernandez Garcia, Gumersindo"]
[WhiteFideId "6603793"]
[BlackFideId "24516740"]
[WhiteElo "1984"]
[BlackElo "2093"]
[Result "0-1"]
[Round "06"]
[TimeControl "180+2"]
[Date "2023.03.28"]
[WhiteClock "0:00:07"]
[BlackClock "0:01:30"]

1. e4 {[%clk 0:02:53]}  Nf6 {[%clk 0:02:59]} 2. e5 {[%clk 0:02:53]}  Nd5 {[%clk 0:02:59]} 3. d4 {[%clk 0:02:54]}  Nb6 {[%clk 0:03:00]} 4. c4 {[%clk 0:02:54]}  d6 {[%clk 0:03:01]} 5. f4 {[%clk 0:02:55]}  g6 {[%clk 0:03:00]} 6. Nc3 {[%clk 0:02:51]}  Bg7 {[%clk 0:03:01]} 7. Be3 {[%clk 0:02:49]}  Be6 {[%clk 0:03:00]} 8. c5 {[%clk 0:02:31]}  Nd5 {[%clk 0:02:58]} 9. Nxd5 {[%clk 0:02:26]}  Bxd5 {[%clk 0:02:58]} 10. Nf3 {[%clk 0:02:22]}  O-O {[%clk 0:02:56]} 11. Be2 {[%clk 0:02:20]}  Nc6 {[%clk 0:02:54]} 12. O-O {[%clk 0:02:17]}  f6 {[%clk 0:02:49]} 13. f5 {[%clk 0:01:59]}  dxe5 {[%clk 0:02:29]} 14. fxg6 {[%clk 0:01:57]}  hxg6 {[%clk 0:02:26]} 15. Nh4 {[%clk 0:01:47]}  Bf7 {[%clk 0:02:21]} 16. d5 {[%clk 0:00:58]}  Qxd5 {[%clk 0:02:18]} 17. Qxd5 {[%clk 0:00:57]}  Bxd5 {[%clk 0:02:19]} 18. Nxg6 {[%clk 0:00:57]}  Rfe8 {[%clk 0:02:19]} 19. Rfd1 {[%clk 0:00:51]}  Be6 {[%clk 0:02:20]} 20. Bf3 {[%clk 0:00:44]}  Kf7 {[%clk 0:02:17]} 21. Nh4 {[%clk 0:00:41]}  Rad8 {[%clk 0:02:16]} 22. Bh5+ {[%clk 0:00:40]}  Kg8 {[%clk 0:02:12]} 23. Bxe8 {[%clk 0:00:40]}  Rxe8 {[%clk 0:02:13]} 24. a3 {[%clk 0:00:37]}  f5 {[%clk 0:02:12]} 25. Bf2 {[%clk 0:00:30]}  e4 {[%clk 0:02:08]} 26. Rab1 {[%clk 0:00:25]}  Ne5 {[%clk 0:02:02]} 27. Bd4 {[%clk 0:00:22]}  Bf6 {[%clk 0:01:57]} 28. Bxe5 {[%clk 0:00:16]}  Bxe5 {[%clk 0:01:57]} 29. Ng6 {[%clk 0:00:17]}  Bf6 {[%clk 0:01:54]} 30. Nf4 {[%clk 0:00:15]}  Bb3 {[%clk 0:01:55]} 31. Rd7 {[%clk 0:00:14]}  Kf7 {[%clk 0:01:52]} 32. Nh5 {[%clk 0:00:10]}  Be5 {[%clk 0:01:50]} 33. Ng3 {[%clk 0:00:10]}  Ke6 {[%clk 0:01:49]} 34. Rd2 {[%clk 0:00:08]}  e3 {[%clk 0:01:48]} 35. Re2 {[%clk 0:00:08]}  f4 {[%clk 0:01:47]} 36. Nf1 {[%clk 0:00:07]}  Bc4 {[%clk 0:01:47]} 37. Ree1 {[%clk 0:00:07]}  Rd8 {[%clk 0:01:43]} 38. g3 {[%clk 0:00:08]}  e2 {[%clk 0:01:39]} 39. gxf4 {[%clk 0:00:07]}  exf1=Q+ {[%clk 0:01:37]} 40. Rxf1 {[%clk 0:00:07]}  Bxf1 {[%clk 0:01:37]} 41. Rxf1 {[%clk 0:00:08]}  Bxb2 {[%clk 0:01:37]} 42. Rb1 {[%clk 0:00:08]}  Rd2 {[%clk 0:01:37]} 43. h4 {[%clk 0:00:07]}  Kf5 {[%clk 0:01:36]} 44. Re1 {[%clk 0:00:07]}  Bd4+ {[%clk 0:01:34]} 45. Kh1 {[%clk 0:00:07]}  Kxf4 {[%clk 0:01:32]} 46. c6 {[%clk 0:00:07]}  Kg3 {[%clk 0:01:30]} 0-1


[Site "https://www.chess.com"]

[Event "Titled Tuesday Blitz March 28 Late 2023"]
[White "Hoffmann, Asa"]
[Black "Araujo, Everson De Moura"]
[WhiteFideId "2001470"]
[BlackFideId "22737197"]
[WhiteElo "2117"]
[BlackElo "2035"]
[Result "1-0"]
[Round "06"]
[TimeControl "180+2"]
[Date "2023.03.28"]
[WhiteClock "0:01:50"]
[BlackClock "0:00:02"]

1. d4 {[%clk 0:02:58]}  d5 {[%clk 0:03:00]} 2. Bg5 {[%clk 0:02:55]}  h6 {[%clk 0:02:57]} 3. Bh4 {[%clk 0:02:55]}  Nf6 {[%clk 0:02:56]} 4. e3 {[%clk 0:02:55]}  Bf5 {[%clk 0:02:51]} 5. c4 {[%clk 0:02:52]}  c6 {[%clk 0:02:37]} 6. Nc3 {[%clk 0:02:52]}  e6 {[%clk 0:02:35]} 7. Qb3 {[%clk 0:02:49]}  Qb6 {[%clk 0:02:11]} 8. c5 {[%clk 0:02:49]}  Qxb3 {[%clk 0:02:10]} 9. axb3 {[%clk 0:02:49]}  Be7 {[%clk 0:02:07]} 10. b4 {[%clk 0:02:48]}  Na6 {[%clk 0:02:05]} 11. b5 {[%clk 0:02:47]}  Nb4 {[%clk 0:02:04]} 12. Kd2 {[%clk 0:02:44]}  O-O {[%clk 0:01:44]} 13. f3 {[%clk 0:02:44]}  g5 {[%clk 0:01:36]} 14. Bg3 {[%clk 0:02:40]}  Rfd8 {[%clk 0:01:21]} 15. bxc6 {[%clk 0:02:38]}  bxc6 {[%clk 0:01:18]} 16. Ba6 {[%clk 0:02:34]}  Nxa6 {[%clk 0:01:12]} 17. Rxa6 {[%clk 0:02:33]}  Rdc8 {[%clk 0:01:08]} 18. Nge2 {[%clk 0:02:30]}  Nh5 {[%clk 0:00:54]} 19. Bf2 {[%clk 0:02:22]}  Nf6 {[%clk 0:00:54]} 20. h4 {[%clk 0:02:21]}  g4 {[%clk 0:00:50]} 21. Rha1 {[%clk 0:02:20]}  Rc7 {[%clk 0:00:40]} 22. b4 {[%clk 0:02:09]}  Rb7 {[%clk 0:00:36]} 23. R1a4 {[%clk 0:02:06]}  Rab8 {[%clk 0:00:15]} 24. Rxa7 {[%clk 0:01:59]}  Rxb4 {[%clk 0:00:11]} 25. Rxb4 {[%clk 0:01:58]}  Rxb4 {[%clk 0:00:11]} 26. Rxe7 {[%clk 0:01:58]}  Rb2+ {[%clk 0:00:11]} 27. Kd1 {[%clk 0:01:54]}  gxf3 {[%clk 0:00:06]} 28. gxf3 {[%clk 0:01:53]}  Kg7 {[%clk 0:00:02]} 29. Rc7 {[%clk 0:01:50]} 1-0


[Site "https://www.chess.com"]

[Event "Titled Tuesday Blitz March 28 Late 2023"]
[White "Svicevic, Rastko"]
[Black "Melikhov, Evgeny V."]
[WhiteFideId "916315"]
[BlackFideId "4122046"]
[WhiteElo "2071"]
[BlackElo "2158"]
[Result "0-1"]
[Round "06"]
[TimeControl "180+2"]
[Date "2023.03.28"]
[WhiteClock "0:00:02"]
[BlackClock "0:00:09"]

1. d4 {[%clk 0:03:00]}  Nf6 {[%clk 0:02:59]} 2. Bg5 {[%clk 0:03:00]}  e6 {[%clk 0:02:59]} 3. e4 {[%clk 0:02:59]}  h6 {[%clk 0:02:58]} 4. Bxf6 {[%clk 0:02:58]}  Qxf6 {[%clk 0:02:58]} 5. c3 {[%clk 0:02:55]}  d5 {[%clk 0:02:56]} 6. Bd3 {[%clk 0:02:51]}  c5 {[%clk 0:02:52]} 7. Nf3 {[%clk 0:02:50]}  cxd4 {[%clk 0:02:41]} 8. cxd4 {[%clk 0:02:43]}  Bb4+ {[%clk 0:02:38]} 9. Nc3 {[%clk 0:02:41]}  Nc6 {[%clk 0:02:31]} 10. O-O {[%clk 0:02:32]}  Bxc3 {[%clk 0:02:21]} 11. bxc3 {[%clk 0:02:15]}  dxe4 {[%clk 0:02:10]} 12. Bxe4 {[%clk 0:02:16]}  Bd7 {[%clk 0:02:09]} 13. Rb1 {[%clk 0:02:16]}  b6 {[%clk 0:02:04]} 14. Ne5 {[%clk 0:02:10]}  Rc8 {[%clk 0:02:02]} 15. Nxd7 {[%clk 0:02:02]}  Kxd7 {[%clk 0:02:01]} 16. Qa4 {[%clk 0:02:02]}  Qf4 {[%clk 0:01:45]} 17. Bxc6+ {[%clk 0:01:54]}  Rxc6 {[%clk 0:01:45]} 18. Qxa7+ {[%clk 0:01:38]}  Qc7 {[%clk 0:01:45]} 19. Qa4 {[%clk 0:01:36]}  Rc8 {[%clk 0:01:38]} 20. h3 {[%clk 0:01:24]}  Ke7 {[%clk 0:01:35]} 21. Rfc1 {[%clk 0:01:08]}  Kf8 {[%clk 0:01:31]} 22. Rb3 {[%clk 0:01:05]}  Kg8 {[%clk 0:01:26]} 23. Qb4 {[%clk 0:01:04]}  Rc4 {[%clk 0:01:23]} 24. Qxb6 {[%clk 0:01:02]}  Qxb6 {[%clk 0:01:22]} 25. Rxb6 {[%clk 0:01:01]}  Rxc3 {[%clk 0:01:11]} 26. Rxc3 {[%clk 0:00:59]}  Rxc3 {[%clk 0:01:11]} 27. a4 {[%clk 0:00:31]}  Rc4 {[%clk 0:01:07]} 28. a5 {[%clk 0:00:29]}  Rxd4 {[%clk 0:01:06]} 29. Rb8+ {[%clk 0:00:28]}  Kh7 {[%clk 0:01:05]} 30. a6 {[%clk 0:00:28]}  Ra4 {[%clk 0:01:05]} 31. Rb6 {[%clk 0:00:21]}  Ra2 {[%clk 0:01:03]} 32. Kh2 {[%clk 0:00:20]}  e5 {[%clk 0:01:01]} 33. Kg3 {[%clk 0:00:20]}  f5 {[%clk 0:00:59]} 34. Kf3 {[%clk 0:00:18]}  Ra3+ {[%clk 0:00:57]} 35. Ke2 {[%clk 0:00:18]}  e4 {[%clk 0:00:57]} 36. Kd2 {[%clk 0:00:17]}  g5 {[%clk 0:00:49]} 37. Kc2 {[%clk 0:00:17]}  f4 {[%clk 0:00:46]} 38. Kb2 {[%clk 0:00:16]}  Ra5 {[%clk 0:00:45]} 39. Rb7+ {[%clk 0:00:14]}  Kg6 {[%clk 0:00:44]} 40. a7 {[%clk 0:00:14]}  e3 {[%clk 0:00:31]} 41. fxe3 {[%clk 0:00:13]}  fxe3 {[%clk 0:00:31]} 42. Kb3 {[%clk 0:00:09]}  e2 {[%clk 0:00:16]} 43. Re7 {[%clk 0:00:09]}  Rxa7 {[%clk 0:00:13]} 44. Rxe2 {[%clk 0:00:09]}  Rc7 {[%clk 0:00:13]} 45. Kb4 {[%clk 0:00:06]}  Kf5 {[%clk 0:00:12]} 46. Rf2+ {[%clk 0:00:05]}  Ke4 {[%clk 0:00:10]} 47. Rf6 {[%clk 0:00:05]}  h5 {[%clk 0:00:11]} 48. Rh6 {[%clk 0:00:03]}  h4 {[%clk 0:00:11]} 49. Rg6 {[%clk 0:00:03]}  Kf5 {[%clk 0:00:11]} 50. Rd6 {[%clk 0:00:03]}  Rc2 {[%clk 0:00:11]} 51. Rd5+ {[%clk 0:00:03]}  Kf4 {[%clk 0:00:10]} 52. Rd4+ {[%clk 0:00:03]}  Kf5 {[%clk 0:00:09]} 53. Rg4 {[%clk 0:00:03]}  Rf2 {[%clk 0:00:09]} 54. Kc3 {[%clk 0:00:02]}  Rf4 {[%clk 0:00:09]} 0-1


[Site "https://www.chess.com"]

[Event "Titled Tuesday Blitz March 28 Late 2023"]
[White "Rios Escobar, Adan"]
[Black "Manu_ChessExcelsior"]
[WhiteFideId "3403645"]
[WhiteElo "2416"]
[BlackElo "2115"]
[Result "1-0"]
[Round "06"]
[TimeControl "180+2"]
[Date "2023.03.28"]
[WhiteClock "0:00:31"]
[BlackClock "0:00:01"]

1. d4 {[%clk 0:02:52]}  d5 {[%clk 0:02:59]} 2. g3 {[%clk 0:02:51]}  e6 {[%clk 0:02:59]} 3. Nf3 {[%clk 0:02:51]}  Nf6 {[%clk 0:02:59]} 4. Bg2 {[%clk 0:02:51]}  Be7 {[%clk 0:03:00]} 5. O-O {[%clk 0:02:52]}  O-O {[%clk 0:03:01]} 6. c4 {[%clk 0:02:53]}  dxc4 {[%clk 0:03:00]} 7. Qc2 {[%clk 0:02:53]}  a6 {[%clk 0:03:00]} 8. a4 {[%clk 0:02:54]}  Bd7 {[%clk 0:02:59]} 9. Rd1 {[%clk 0:02:54]}  Bc6 {[%clk 0:02:59]} 10. Nc3 {[%clk 0:02:55]}  Nbd7 {[%clk 0:02:35]} 11. e4 {[%clk 0:02:53]}  b5 {[%clk 0:02:23]} 12. d5 {[%clk 0:02:52]}  exd5 {[%clk 0:02:16]} 13. e5 {[%clk 0:02:52]}  Ne4 {[%clk 0:02:10]} 14. Nxd5 {[%clk 0:02:52]}  Nec5 {[%clk 0:01:31]} 15. Nxe7+ {[%clk 0:02:38]}  Qxe7 {[%clk 0:01:30]} 16. Ng5 {[%clk 0:02:39]}  g6 {[%clk 0:01:19]} 17. Bxc6 {[%clk 0:02:36]}  Rab8 {[%clk 0:01:10]} 18. axb5 {[%clk 0:02:34]}  Nxe5 {[%clk 0:01:08]} 19. Bg2 {[%clk 0:01:58]}  axb5 {[%clk 0:01:03]} 20. Ne4 {[%clk 0:01:45]}  Ncd3 {[%clk 0:01:02]} 21. Bh6 {[%clk 0:01:44]}  Rfe8 {[%clk 0:00:58]} 22. Bg5 {[%clk 0:01:39]}  Qb4 {[%clk 0:00:55]} 23. Nf6+ {[%clk 0:01:35]}  Kg7 {[%clk 0:00:55]} 24. Nxe8+ {[%clk 0:01:35]}  Rxe8 {[%clk 0:00:56]} 25. Ra7 {[%clk 0:01:19]}  h6 {[%clk 0:00:46]} 26. Be3 {[%clk 0:01:18]}  Re7 {[%clk 0:00:41]} 27. Bd4 {[%clk 0:01:14]}  Kh7 {[%clk 0:00:37]} 28. Qc3 {[%clk 0:01:09]}  Qd6 {[%clk 0:00:32]} 29. b4 {[%clk 0:00:52]}  Nc6 {[%clk 0:00:21]} 30. Bc5 {[%clk 0:00:43]}  Qe6 {[%clk 0:00:08]} 31. Bxc6 {[%clk 0:00:38]}  Qf5 {[%clk 0:00:01]} 32. Rxd3 {[%clk 0:00:31]} 1-0


[Site "https://www.chess.com"]

[Event "Titled Tuesday Blitz March 28 Late 2023"]
[White "Aung Thant Zin"]
[Black "Martin Barcelo, Carles"]
[WhiteFideId "13000063"]
[BlackFideId "24561444"]
[WhiteElo "2278"]
[BlackElo "2089"]
[Result "0-1"]
[Round "06"]
[TimeControl "180+2"]
[Date "2023.03.28"]
[WhiteClock "0:00:01"]
[BlackClock "0:00:13"]

1. e4 {[%clk 0:02:59]}  e6 {[%clk 0:02:58]} 2. d4 {[%clk 0:02:59]}  d5 {[%clk 0:02:59]} 3. Nc3 {[%clk 0:02:52]}  dxe4 {[%clk 0:02:57]} 4. Nxe4 {[%clk 0:02:52]}  Nd7 {[%clk 0:02:57]} 5. Nf3 {[%clk 0:02:52]}  Ngf6 {[%clk 0:02:58]} 6. Bg5 {[%clk 0:02:52]}  Be7 {[%clk 0:02:56]} 7. Nxf6+ {[%clk 0:02:52]}  Bxf6 {[%clk 0:02:50]} 8. Bxf6 {[%clk 0:02:51]}  Nxf6 {[%clk 0:02:49]} 9. Bd3 {[%clk 0:02:51]}  c5 {[%clk 0:02:48]} 10. Bb5+ {[%clk 0:02:29]}  Bd7 {[%clk 0:02:47]} 11. Bxd7+ {[%clk 0:02:28]}  Nxd7 {[%clk 0:02:44]} 12. O-O {[%clk 0:02:26]}  O-O {[%clk 0:02:43]} 13. Qe2 {[%clk 0:02:25]}  cxd4 {[%clk 0:02:32]} 14. Nxd4 {[%clk 0:02:24]}  Qb6 {[%clk 0:02:33]} 15. c3 {[%clk 0:02:22]}  Nf6 {[%clk 0:02:33]} 16. Rad1 {[%clk 0:02:18]}  Rfd8 {[%clk 0:02:32]} 17. h3 {[%clk 0:02:17]}  a6 {[%clk 0:02:32]} 18. Nf3 {[%clk 0:02:15]}  h6 {[%clk 0:02:31]} 19. Ne5 {[%clk 0:02:14]}  Qc5 {[%clk 0:02:26]} 20. Kh1 {[%clk 0:02:02]}  Rd5 {[%clk 0:02:22]} 21. Nd3 {[%clk 0:01:52]}  Qc4 {[%clk 0:02:09]} 22. Nc1 {[%clk 0:01:09]}  Qxe2 {[%clk 0:02:09]} 23. Nxe2 {[%clk 0:01:09]}  Rad8 {[%clk 0:02:10]} 24. Rd4 {[%clk 0:01:02]}  e5 {[%clk 0:02:04]} 25. Rb4 {[%clk 0:01:01]}  Rd2 {[%clk 0:02:02]} 26. Ng3 {[%clk 0:01:01]}  R8d7 {[%clk 0:02:00]} 27. a4 {[%clk 0:00:56]}  Rc2 {[%clk 0:01:59]} 28. Rb6 {[%clk 0:00:37]}  h5 {[%clk 0:01:57]} 29. Nf5 {[%clk 0:00:34]}  Ne4 {[%clk 0:01:45]} 30. Kg1 {[%clk 0:00:28]}  g6 {[%clk 0:01:42]} 31. Ne3 {[%clk 0:00:28]}  Re2 {[%clk 0:01:41]} 32. Nc4 {[%clk 0:00:23]}  Nc5 {[%clk 0:01:27]} 33. a5 {[%clk 0:00:13]}  Kf8 {[%clk 0:01:00]} 34. b4 {[%clk 0:00:09]}  Na4 {[%clk 0:01:00]} 35. Rd6 {[%clk 0:00:08]}  Rc7 {[%clk 0:00:43]} 36. Nb6 {[%clk 0:00:05]}  Nxc3 {[%clk 0:00:42]} 37. Rd8+ {[%clk 0:00:05]}  Ke7 {[%clk 0:00:36]} 38. Rb8 {[%clk 0:00:05]}  Rb2 {[%clk 0:00:30]} 39. Kh2 {[%clk 0:00:01]}  Rxb4 {[%clk 0:00:26]} 40. Rc1 {[%clk 0:00:01]}  Rb5 {[%clk 0:00:13]} 0-1


[Site "https://www.chess.com"]